fUSD/lending_fUSD_20260625
["ID","MTS","AMOUNT","RATE_DAILY","PERIOD"]
[426332607,1782319832000,-318.0,0.00013096,2]
[426332587,1782319832000,-150.0,0.00013095,2]
[426332609,1782319832000,-310.0,0.00013096,2]
[426332626,1782319832000,-312.0,0.00013096,2]
[426332621,1782319832000,-318.0,0.00013096,2]
[426332620,1782319832000,-316.0,0.00013096,2]
[426332617,1782319832000,-311.0,0.00013096,2]
[426332627,1782319832000,-319.0,0.00013096,2]
[426332619,1782319832000,-314.0,0.00013096,2]
[426332618,1782319832000,-151.0,0.00013096,2]
[426332624,1782319832000,-320.0,0.00013096,2]
[426332622,1782319832000,-153.0,0.00013096,2]
[426332623,1782319832000,-317.0,0.00013096,2]
[426332625,1782319832000,-151.0,0.00013096,2]
[426332534,1782319832000,-363.71283817,0.00013095,2]
[426332616,1782319832000,-310.0,0.00013096,2]
[426332596,1782319832000,-310.0,0.00013096,2]
[426332610,1782319832000,-315.0,0.00013096,2]
[426332591,1782319832000,-152.0,0.00013095,2]
[426332600,1782319832000,-314.0,0.00013096,2]
[426332549,1782319832000,-151.0,0.00013095,2]
[426332555,1782319832000,-152.0,0.00013095,2]
[426332538,1782319832000,-151.0,0.00013095,2]
[426332547,1782319832000,-151.0,0.00013095,2]
[426332540,1782319832000,-152.0,0.00013095,2]
[426332544,1782319832000,-153.0,0.00013095,2]
[426332557,1782319832000,-151.0,0.00013095,2]
[426332542,1782319832000,-152.0,0.00013095,2]
[426332553,1782319832000,-150.0,0.00013095,2]
[426332559,1782319832000,-151.0,0.00013095,2]
[426332563,1782319832000,-309.0,0.00013095,2]
[426332568,1782319832000,-318.0,0.00013095,2]
[426332551,1782319832000,-152.0,0.00013095,2]
[426332565,1782319832000,-151.0,0.00013095,2]
[426332561,1782319832000,-311.0,0.00013095,2]
[426332597,1782319832000,-318.0,0.00013096,2]
[426332593,1782319832000,-151.0,0.00013095,2]
[426332589,1782319832000,-152.0,0.00013095,2]
[426332584,1782319832000,-151.0,0.00013095,2]
[426332578,1782319832000,-152.0,0.00013095,2]
[426332602,1782319832000,-318.0,0.00013096,2]
[426332580,1782319832000,-151.0,0.00013095,2]
[426332582,1782319832000,-151.0,0.00013095,2]
[426332576,1782319832000,-336.0,0.00013095,2]
[426332570,1782319832000,-309.0,0.00013095,2]
[426332574,1782319832000,-151.0,0.00013095,2]
[426332666,1782319833000,-152.0,0.00013096,2]
[426332665,1782319833000,-152.0,0.00013096,2]
[426332664,1782319833000,-152.0,0.00013096,2]
[426332655,1782319833000,-311.0,0.00013096,2]
[426332662,1782319833000,-152.0,0.00013096,2]
[426332674,1782319833000,-152.0,0.00013096,2]
[426332673,1782319833000,-292.0,0.00013096,2]
[426332660,1782319833000,-152.0,0.00013096,2]
[426332659,1782319833000,-152.0,0.00013096,2]
[426332667,1782319833000,-152.0,0.00013096,2]
[426332663,1782319833000,-248.0,0.00013096,2]
[426332668,1782319833000,-192.0,0.00013096,2]
[426332684,1782319833000,-244.0,0.000131,2]
[426332671,1782319833000,-152.0,0.00013096,2]
[426332670,1782319833000,-152.0,0.00013096,2]
[426332672,1782319833000,-152.0,0.00013096,2]
[426332675,1782319833000,-152.0,0.00013096,2]
[426332677,1782319833000,-152.0,0.00013097,2]
[426332678,1782319833000,-152.0,0.00013097,2]
[426332680,1782319833000,-160.0,0.00013098,2]
[426332679,1782319833000,-296.0,0.00013097,2]
[426332681,1782319833000,-152.0,0.000131,2]
[426332682,1782319833000,-152.0,0.000131,2]
[426332676,1782319833000,-296.0,0.00013096,2]
[426332661,1782319833000,-296.0,0.00013096,2]
[426332669,1782319833000,-152.0,0.00013096,2]
[426332658,1782319833000,-315.0,0.00013096,2]
[426332685,1782319833000,-152.0,0.000131,2]
[426332654,1782319833000,-150.0,0.00013096,2]
[426332629,1782319833000,-151.0,0.00013096,2]
[426332628,1782319833000,-318.0,0.00013096,2]
[426332630,1782319833000,-296.54502051,0.00013096,2]
[426332632,1782319833000,-320.0,0.00013096,2]
[426332631,1782319833000,-312.0,0.00013096,2]
[426332633,1782319833000,-151.0,0.00013096,2]
[426332637,1782319833000,-150.0,0.00013096,2]
[426332635,1782319833000,-314.0,0.00013096,2]
[426332634,1782319833000,-309.0,0.00013096,2]
[426332636,1782319833000,-316.0,0.00013096,2]
[426332639,1782319833000,-314.0,0.00013096,2]
[426332647,1782319833000,-151.0,0.00013096,2]
[426332656,1782319833000,-316.0,0.00013096,2]
[426332648,1782319833000,-317.0,0.00013096,2]
[426332638,1782319833000,-312.0,0.00013096,2]
[426332641,1782319833000,-318.0,0.00013096,2]
[426332643,1782319833000,-151.0,0.00013096,2]
[426332640,1782319833000,-151.0,0.00013096,2]
[426332642,1782319833000,-151.0,0.00013096,2]
[426332644,1782319833000,-315.0,0.00013096,2]
[426332646,1782319833000,-311.0,0.00013096,2]
[426332645,1782319833000,-320.0,0.00013096,2]
[426332650,1782319833000,-150.0,0.00013096,2]
[426332657,1782319833000,-150.0,0.00013096,2]
[426332653,1782319833000,-316.0,0.00013096,2]
[426332651,1782319833000,-317.0,0.00013096,2]
[426332649,1782319833000,-311.0,0.00013096,2]
[426332683,1782319833000,-152.0,0.000131,2]
[426332652,1782319833000,-317.0,0.00013096,2]
[426332687,1782319833000,-160.02,0.00013101,2]
[426332714,1782319833000,-152.0,0.00013196,2]
[426332717,1782319833000,-152.0,0.00013196,2]
[426332719,1782319833000,-233.06,0.00013217,2]
[426332740,1782319833000,-313.0,0.00013471,2]
[426332721,1782319833000,-166.66,0.00013233,2]
[426332725,1782319833000,-150.0,0.00013425,2]
[426332722,1782319833000,-150.0,0.00013425,2]
[426332723,1782319833000,-150.0,0.00013425,2]
[426332730,1782319833000,-500.0,0.00013425,2]
[426332724,1782319833000,-200.0,0.00013425,2]
[426332726,1782319833000,-191.82530748,0.00013425,2]
[426332729,1782319833000,-500.0,0.00013425,2]
[426332713,1782319833000,-300.0,0.00013196,2]
[426332727,1782319833000,-150.99837498,0.00013425,2]
[426332731,1782319833000,-500.0,0.00013425,2]
[426332733,1782319833000,-516.29327119,0.00013425,2]
[426332743,1782319833000,-488.695487,0.000135,2]
[426332735,1782319833000,-500.0,0.00013425,2]
[426332742,1782319833000,-166.66,0.0001349,2]
[426332736,1782319833000,-500.0,0.00013425,2]
[426332738,1782319833000,-500.0,0.00013426,2]
[426332732,1782319833000,-500.0,0.00013425,2]
[426332737,1782319833000,-607.68645529,0.00013425,2]
[426332739,1782319833000,-151.0,0.00013456,2]
[426332741,1782319833000,-316.0,0.00013471,2]
[426332686,1782319833000,-248.0,0.000131,2]
[426332728,1782319833000,-500.0,0.00013425,2]
[426332716,1782319833000,-152.0,0.00013196,2]
[426332734,1782319833000,-500.0,0.00013425,2]
[426332712,1782319833000,-296.0,0.00013133,2]
[426332715,1782319833000,-152.0,0.00013196,2]
[426332697,1782319833000,-152.0,0.00013133,2]
[426332690,1782319833000,-152.0,0.00013101,2]
[426332689,1782319833000,-152.0,0.00013101,2]
[426332696,1782319833000,-1460.69,0.00013133,2]
[426332695,1782319833000,-158.64,0.00013119,2]
[426332688,1782319833000,-152.0,0.00013101,2]
[426332691,1782319833000,-152.0,0.00013101,2]
[426332692,1782319833000,-292.0,0.00013101,2]
[426332694,1782319833000,-150.0,0.00013117,2]
[426332698,1782319833000,-152.0,0.00013133,2]
[426332699,1782319833000,-296.0,0.00013133,2]
[426332701,1782319833000,-152.0,0.00013133,2]
[426332693,1782319833000,-160.0,0.00013104,2]
[426332700,1782319833000,-152.0,0.00013133,2]
[426332710,1782319833000,-152.0,0.00013133,2]
[426332702,1782319833000,-152.0,0.00013133,2]
[426332720,1782319833000,-42270.19,0.00013217,2]
[426332718,1782319833000,-292.0,0.00013196,2]
[426332707,1782319833000,-152.0,0.00013133,2]
[426332706,1782319833000,-152.0,0.00013133,2]
[426332711,1782319833000,-152.0,0.00013133,2]
[426332705,1782319833000,-152.0,0.00013133,2]
[426332708,1782319833000,-152.0,0.00013133,2]
[426332709,1782319833000,-292.0,0.00013133,2]
[426332704,1782319833000,-292.0,0.00013133,2]
[426332703,1782319833000,-152.0,0.00013133,2]
[426332779,1782319834000,-300.0,0.00014403,2]
[426332762,1782319834000,-488.695487,0.00013915,2]
[426332765,1782319834000,-250.0,0.00014,2]
[426332766,1782319834000,-488.695487,0.00014019,2]
[426332769,1782319834000,-488.695487,0.00014175,2]
[426332768,1782319834000,-488.695487,0.00014123,2]
[426332767,1782319834000,-488.695487,0.00014071,2]
[426332770,1782319834000,-488.695487,0.00014227,2]
[426332777,1782319834000,-300.0,0.00014403,2]
[426332772,1782319834000,-667.71264283,0.0001429,2]
[426332776,1782319834000,-300.0,0.00014403,2]
[426332773,1782319834000,-488.695487,0.00014331,2]
[426332778,1782319834000,-300.0,0.00014403,2]
[426332775,1782319834000,-488.695487,0.00014383,2]
[426332763,1782319834000,-488.695487,0.00013967,2]
[426332774,1782319834000,-150.0,0.00014354,2]
[426332771,1782319834000,-488.695487,0.00014279,2]
[426332764,1782319834000,-500.0,0.0001399,2]
[426332746,1782319834000,-317.0,0.00013604,2]
[426332760,1782319834000,-1148.37,0.00013858,2]
[426332780,1782319834000,-300.0,0.00014403,2]
[426332745,1782319834000,-488.695487,0.00013604,2]
[426332744,1782319834000,-488.695487,0.00013552,2]
[426332755,1782319834000,-377.4511545,0.00013816,2]
[426332748,1782319834000,-500.0,0.00013698,2]
[426332747,1782319834000,-488.695487,0.00013656,2]
[426332749,1782319834000,-200.0,0.00013699,2]
[426332759,1782319834000,-2624.3461016,0.00013821,2]
[426332750,1782319834000,-488.695487,0.00013708,2]
[426332752,1782319834000,-488.695487,0.0001376,2]
[426332754,1782319834000,-488.695487,0.00013812,2]
[426332753,1782319834000,-309.0,0.00013808,2]
[426332756,1782319834000,-5621.082394,0.00013817,2]
[426332757,1782319834000,-12871.9987381,0.00013821,2]
[426332761,1782319834000,-488.695487,0.00013863,2]
[426332758,1782319834000,-7864.6527643,0.00013821,2]
[426332751,1782319834000,-24648.91436651,0.00013758,2]
[426332783,1782319834000,-600.0,0.00014403,2]
[426332793,1782319834000,-488.695487,0.00014642,2]
[426332784,1782319834000,-600.0,0.00014403,2]
[426332809,1782319834000,-500.0,0.00014799,2]
[426332805,1782319834000,-220.18791893,0.0001479,2]
[426332808,1782319834000,-500.0,0.00014799,2]
[426332811,1782319834000,-500.0,0.00014799,2]
[426332813,1782319834000,-749.5022,0.000148,2]
[426332814,1782319834000,-98783.23609048,0.000148,2]
[426332810,1782319834000,-500.0,0.00014799,2]
[426332807,1782319834000,-488.695487,0.00014798,2]
[426332806,1782319834000,-151.0,0.00014797,2]
[426332812,1782319834000,-150.0,0.000148,2]
[426332815,1782319834000,-52343.34355541,0.000148,2]
[426332816,1782319834000,-64477.42274736,0.000148,2]
[426332821,1782319834000,-301.075,0.000148,2]
[426332818,1782319834000,-10111.65549973,0.000148,2]
[426332785,1782319834000,-600.0,0.00014403,2]
[426332817,1782319834000,-39725.7513425,0.000148,2]
[426332819,1782319834000,-11407.5491,0.000148,2]
[426332804,1782319834000,-150.0,0.00014782,2]
[426332798,1782319834000,-948.0516882,0.000147,2]
[426332820,1782319834000,-1821.72480649,0.000148,2]
[426332797,1782319834000,-183.764802,0.000147,2]
[426332802,1782319834000,-488.695487,0.00014746,2]
[426332781,1782319834000,-600.0,0.00014403,2]
[426332786,1782319834000,-488.695487,0.00014435,2]
[426332790,1782319834000,-488.695487,0.00014538,2]
[426332787,1782319834000,-24648.91436651,0.0001444,2]
[426332791,1782319834000,-488.695487,0.0001459,2]
[426332792,1782319834000,-490.80361266,0.000146,2]
[426332788,1782319834000,-300.73,0.00014452,2]
[426332782,1782319834000,-600.0,0.00014403,2]
[426332794,1782319834000,-488.695487,0.00014694,2]
[426332795,1782319834000,-2500.0,0.000147,2]
[426332799,1782319834000,-935.41974893,0.000147,2]
[426332796,1782319834000,-2873.41616997,0.000147,2]
[426332801,1782319834000,-416.8230157,0.000147,2]
[426332803,1782319834000,-6566.0,0.00014767,2]
[426332789,1782319834000,-488.695487,0.00014487,2]
[426332800,1782319834000,-445.77085455,0.000147,2]
[426332856,1782319838000,-500.0,0.00014999,2]
[426332842,1782319838000,-200.0,0.00014882,2]
[426332844,1782319838000,-151.0,0.00014897,2]
[426332854,1782319838000,-150.0,0.00014987,2]
[426332848,1782319838000,-150.0,0.000149,2]
[426332847,1782319838000,-173.72983617,0.000149,2]
[426332846,1782319838000,-303223.8044,0.000149,2]
[426332852,1782319838000,-151.0,0.000149,2]
[426332845,1782319838000,-500.0,0.00014899,2]
[426332850,1782319838000,-173.54278,0.000149,2]
[426332853,1782319838000,-198.32,0.00014985,2]
[426332849,1782319838000,-151.0,0.000149,2]
[426332855,1782319838000,-8702.8412441,0.00014992,2]
[426332836,1782319838000,-233.06,0.00014869,2]
[426332843,1782319838000,-200.0,0.00014882,2]
[426332839,1782319838000,-500.0,0.00014881,2]
[426332831,1782319838000,-441.37,0.000148,2]
[426332840,1782319838000,-150.0,0.00014882,2]
[426332857,1782319838000,-500.0,0.00014999,2]
[426332823,1782319838000,-1656.49999999,0.000148,2]
[426332825,1782319838000,-2681.19052707,0.000148,2]
[426332824,1782319838000,-380.12353084,0.000148,2]
[426332826,1782319838000,-2053.2684694,0.000148,2]
[426332827,1782319838000,-778.80022126,0.000148,2]
[426332829,1782319838000,-28557.00685045,0.000148,2]
[426332828,1782319838000,-3259.08472131,0.000148,2]
[426332830,1782319838000,-2181662.26753771,0.000148,2]
[426332832,1782319838000,-17793.1814,0.000148,2]
[426332833,1782319838000,-488.695494,0.0001485,2]
[426332834,1782319838000,-1106.0,0.00014861,5]
[426332835,1782319838000,-1312.0,0.00014861,5]
[426332838,1782319838000,-190.503,0.0001488,2]
[426332837,1782319838000,-2448.82,0.0001488,2]
[426332841,1782319838000,-200.0,0.00014882,2]
[426332859,1782319838000,-465940.77877868,0.00015,2]
[426332851,1782319838000,-151.0,0.000149,2]
[426332858,1782319838000,-818.0,0.00015,5]
[426332895,1782319838000,-200.0,0.00015333,2]
[426332900,1782319838000,-316.0,0.000154,2]
[426332901,1782319838000,-202.0,0.000154,2]
[426332899,1782319838000,-644.0,0.000154,2]
[426332904,1782319838000,-185.24,0.00015438,2]
[426332903,1782319838000,-251.21,0.00015408,2]
[426332905,1782319838000,-200.0,0.00015486,2]
[426332906,1782319838000,-389.43,0.000156,2]
[426332907,1782319838000,-2000.0,0.00015601,2]
[426332908,1782319838000,-500.0,0.00015601,2]
[426332914,1782319838000,-24648.91436651,0.00015805,2]
[426332912,1782319838000,-500.0,0.00015732,2]
[426332910,1782319838000,-586.11629522,0.00015677,2]
[426332913,1782319838000,-586.11629522,0.00015782,2]
[426332865,1782319838000,-3929.1399345,0.00015,2]
[426332902,1782319838000,-310.0,0.000154,2]
[426332897,1782319838000,-350.0,0.0001534,2]
[426332909,1782319838000,-201.938549,0.00015644,2]
[426332882,1782319838000,-151.0,0.00015068,2]
[426332892,1782319838000,-200.0,0.00015181,2]
[426332861,1782319838000,-11201.22152963,0.00015,2]
[426332866,1782319838000,-60862.6670732,0.00015,2]
[426332870,1782319838000,-270.343244,0.00015,2]
[426332863,1782319838000,-393162.78346781,0.00015,2]
[426332868,1782319838000,-167.54192142,0.00015,2]
[426332874,1782319838000,-200.0,0.00015031,2]
[426332911,1782319838000,-171.71,0.000157,2]
[426332872,1782319838000,-1000.0,0.00015,2]
[426332888,1782319838000,-24648.91436651,0.00015123,2]
[426332876,1782319838000,-200.0,0.00015031,2]
[426332893,1782319838000,-2873.41616995,0.00015272,2]
[426332880,1782319838000,-151.0,0.00015068,2]
[426332890,1782319838000,-200.0,0.00015181,2]
[426332878,1782319838000,-150.0,0.00015068,2]
[426332885,1782319838000,-900.0,0.00015068,2]
[426332886,1782319838000,-250.0,0.00015068,2]
[426332953,1782319839000,-1762.10422866,0.0001679,2]
[426332952,1782319839000,-171.43,0.00016712,2]
[426332948,1782319839000,-233.06,0.00016521,2]
[426332946,1782319839000,-10182.02673358,0.000165,2]
[426332947,1782319839000,-400.0,0.000165,2]
[426332944,1782319839000,-25323.75,0.00016474,2]
[426332943,1782319839000,-900.0,0.00016438,2]
[426332945,1782319839000,-24648.91436651,0.00016488,2]
[426332954,1782319839000,-10182.02673358,0.000168,2]
[426332951,1782319839000,-441.37,0.000166,2]
[426332950,1782319839000,-400.0,0.000166,2]
[426332955,1782319839000,-400.0,0.000168,2]
[426332964,1782319839000,-3562.0,0.00017238,2]
[426332956,1782319839000,-164.25495325,0.00016874,2]
[426332960,1782319839000,-192.33,0.0001702,2]
[426332958,1782319839000,-10182.02673358,0.00017,2]
[426332959,1782319839000,-400.0,0.00017,2]
[426332961,1782319839000,-10182.02673358,0.000171,2]
[426332962,1782319839000,-400.0,0.000171,2]
[426332963,1782319839000,-24648.91436651,0.0001717,2]
[426332965,1782319839000,-1361.0,0.00017238,2]
[426332967,1782319839000,-1229.0,0.00017238,2]
[426332975,1782319839000,-10182.02673358,0.000175,2]
[426332949,1782319839000,-10182.02673358,0.000166,2]
[426332957,1782319839000,-2873.41616995,0.00016989,2]
[426332942,1782319839000,-151.0,0.00016438,2]
[426332926,1782319839000,-500.0,0.00016438,2]
[426332936,1782319839000,-153.088833,0.00016438,2]
[426332917,1782319839000,-586.11629522,0.00015868,2]
[426332918,1782319839000,-586.11629522,0.00015888,2]
[426332915,1782319839000,-10000.0,0.00015843,2]
[426332916,1782319839000,-2873.41616995,0.00015844,2]
[426332920,1782319839000,-300.0,0.00016,2]
[426332921,1782319839000,-211.14775443,0.00016,2]
[426332922,1782319839000,-758.0,0.00016012,2]
[426332919,1782319839000,-586.11629522,0.00015916,2]
[426332925,1782319839000,-467.6,0.00016438,2]
[426332970,1782319839000,-175.431,0.00017238,2]
[426332929,1782319839000,-584.74145564,0.00016438,2]
[426332923,1782319839000,-1047.09,0.00016059,2]
[426332928,1782319839000,-500.0,0.00016438,2]
[426332924,1782319839000,-2873.41616995,0.00016417,2]
[426332927,1782319839000,-500.0,0.00016438,2]
[426332931,1782319839000,-500.0,0.00016438,2]
[426332932,1782319839000,-500.0,0.00016438,2]
[426332933,1782319839000,-500.0,0.00016438,2]
[426332930,1782319839000,-500.0,0.00016438,2]
[426332941,1782319839000,-151.0,0.00016438,2]
[426332937,1782319839000,-151.0,0.00016438,2]
[426332935,1782319839000,-151.0,0.00016438,2]
[426332938,1782319839000,-151.0,0.00016438,2]
[426332934,1782319839000,-500.0,0.00016438,2]
[426332939,1782319839000,-151.0,0.00016438,2]
[426332940,1782319839000,-151.0,0.00016438,2]
[426332972,1782319839000,-6136.779,0.00017238,2]
[426332971,1782319839000,-217.151,0.00017238,2]
[426332969,1782319839000,-150.0,0.00017238,2]
[426333002,1782319839000,-233.06,0.00018173,2]
[426333003,1782319839000,-10182.02673358,0.000182,2]
[426333004,1782319839000,-441.49930662,0.000182,2]
[426333006,1782319839000,-150.0,0.00018231,4]
[426333005,1782319839000,-150.0,0.000182,4]
[426333009,1782319839000,-150.0,0.00018308,4]
[426333008,1782319839000,-150.0,0.00018267,4]
[426333007,1782319839000,-150.0,0.0001825,4]
[426333012,1782319839000,-1460.69,0.00018386,2]
[426333010,1782319839000,-150.0,0.00018333,4]
[426333015,1782319839000,-150.0,0.000184,4]
[426333011,1782319839000,-150.0,0.00018385,4]
[426333019,1782319839000,-467.6,0.0001841,2]
[426333013,1782319839000,-441.49930662,0.000184,2]
[426333014,1782319839000,-441.37,0.000184,2]
[426333017,1782319839000,-150.0,0.000184,4]
[426333018,1782319839000,-2000.0,0.00018402,2]
[426332968,1782319839000,-1277.0,0.00017238,2]
[426333020,1782319839000,-150.0,0.00018462,4]
[426333022,1782319839000,-150.0,0.000185,4]
[426333021,1782319839000,-441.49930662,0.000185,2]
[426333023,1782319839000,-506.06155054,0.00018533,2]
[426333024,1782319839000,-150.0,0.00018533,4]
[426333026,1782319839000,-150.0,0.00018538,4]
[426333025,1782319839000,-24648.91436651,0.00018535,2]
[426332999,1782319839000,-2873.41616995,0.00018133,2]
[426333001,1782319839000,-150.0,0.00018154,4]
[426333016,1782319839000,-150.0,0.000184,4]
[426332998,1782319839000,-150.0,0.00018077,4]
[426333000,1782319839000,-150.0,0.00018133,4]
[426332966,1782319839000,-383.0,0.00017238,2]
[426332974,1782319839000,-445.77085454,0.000173,2]
[426332973,1782319839000,-10182.02673358,0.000173,2]
[426332978,1782319839000,-3108.56072825,0.0001779,2]
[426332976,1782319839000,-2873.41616995,0.00017561,2]
[426332977,1782319839000,-10182.02673358,0.000177,2]
[426332979,1782319839000,-10182.02673358,0.000178,2]
[426332980,1782319839000,-24648.91436651,0.00017853,2]
[426332981,1782319839000,-233.77,0.00018,2]
[426332983,1782319839000,-10182.02673358,0.00018,2]
[426332984,1782319839000,-441.49930662,0.00018,2]
[426332987,1782319839000,-150.0,0.00018,4]
[426332982,1782319839000,-287.89,0.00018,2]
[426332986,1782319839000,-150.0,0.00018,4]
[426332993,1782319839000,-150.27607151,0.00018,4]
[426332995,1782319839000,-150.0,0.00018,4]
[426332991,1782319839000,-150.0,0.00018,4]
[426332992,1782319839000,-150.0,0.00018,4]
[426332994,1782319839000,-150.0,0.00018,4]
[426332989,1782319839000,-150.0,0.00018,4]
[426332988,1782319839000,-150.0,0.00018,4]
[426332997,1782319839000,-150.0,0.00018071,2]
[426332990,1782319839000,-150.0,0.00018,4]
[426332985,1782319839000,-150.0,0.00018,4]
[426332996,1782319839000,-350.0,0.00018,2]
[426333049,1782319840000,-5677.29937298,0.00019,2]
[426333052,1782319840000,-348.0,0.00019,2]
[426333051,1782319840000,-313.0,0.00019,2]
[426333050,1782319840000,-520244.70339181,0.00019,2]
[426333044,1782319840000,-198.0,0.00019,2]
[426333054,1782319840000,-1676.0,0.00019,2]
[426333053,1782319840000,-174.0,0.00019,2]
[426333058,1782319840000,-150.0,0.00019,4]
[426333063,1782319840000,-150.0,0.00019077,4]
[426333056,1782319840000,-173.0,0.00019,2]
[426333055,1782319840000,-220.0,0.00019,2]
[426333059,1782319840000,-150.0,0.00019,4]
[426333057,1782319840000,-756.0,0.00019,2]
[426333065,1782319840000,-150.0,0.00019154,4]
[426333064,1782319840000,-156.57745764,0.0001911,2]
[426333066,1782319840000,-151.0,0.00019178,2]
[426333048,1782319840000,-150.0,0.00019,7]
[426333060,1782319840000,-150.0,0.00019,4]
[426333043,1782319840000,-150.0,0.00018933,4]
[426333034,1782319840000,-2873.41616995,0.00018706,2]
[426333046,1782319840000,-1027.0,0.00019,2]
[426333031,1782319840000,-150.0,0.00018667,4]
[426333030,1782319840000,-150.0,0.00018667,4]
[426333032,1782319840000,-150.0,0.00018692,4]
[426333029,1782319840000,-302.84100299,0.00018656,2]
[426333028,1782319840000,-150.0,0.00018615,4]
[426333027,1782319840000,-150.0,0.000186,4]
[426333033,1782319840000,-441.49930662,0.000187,2]
[426333040,1782319840000,-171.71,0.0001884,2]
[426333041,1782319840000,-150.0,0.00018846,4]
[426333035,1782319840000,-150.0,0.0001875,4]
[426333036,1782319840000,-150.0,0.00018769,4]
[426333038,1782319840000,-150.0,0.000188,4]
[426333042,1782319840000,-150.0,0.00018923,4]
[426333061,1782319840000,-150.0,0.00019,4]
[426333037,1782319840000,-150.0,0.000188,4]
[426333039,1782319840000,-150.0,0.000188,4]
[426333047,1782319840000,-433.0,0.00019,2]
[426333045,1782319840000,-225.0,0.00019,2]
[426333062,1782319840000,-150.0,0.00019067,4]
[426333094,1782319840000,-150.0,0.00019733,4]
[426333069,1782319840000,-150.0,0.000192,4]
[426333095,1782319840000,-150.0,0.0001975,4]
[426333093,1782319840000,-150.0,0.00019692,4]
[426333097,1782319840000,-150.0,0.000198,4]
[426333092,1782319840000,-150.0,0.00019667,4]
[426333091,1782319840000,-150.0,0.00019615,4]
[426333098,1782319840000,-233.06,0.00019825,2]
[426333099,1782319840000,-150.0,0.00019846,4]
[426333100,1782319840000,-2873.41616995,0.0001985,2]
[426333102,1782319840000,-24648.91436651,0.000199,2]
[426333108,1782319840000,-217083.56573521,0.0001998,2]
[426333103,1782319840000,-445.77085454,0.000199,2]
[426333106,1782319840000,-48588.6576909,0.0001995,15]
[426333105,1782319840000,-1784.89,0.00019945,2]
[426333101,1782319840000,-150.0,0.00019867,4]
[426333104,1782319840000,-150.0,0.00019923,4]
[426333107,1782319840000,-25323.75,0.00019968,2]
[426333068,1782319840000,-150.0,0.000192,4]
[426333090,1782319840000,-150.0,0.000196,4]
[426333089,1782319840000,-150.0,0.000196,4]
[426333096,1782319840000,-150.0,0.00019769,4]
[426333086,1782319840000,-150.0,0.000195,4]
[426333075,1782319840000,-4650.22093866,0.0001929,2]
[426333071,1782319840000,-24648.91436651,0.00019218,2]
[426333077,1782319840000,-150.0,0.00019308,4]
[426333070,1782319840000,-150.0,0.000192,4]
[426333073,1782319840000,-150.0,0.0001925,4]
[426333076,1782319840000,-6291.9054,0.0001929,2]
[426333067,1782319840000,-151.0,0.00019178,2]
[426333085,1782319840000,-150.0,0.00019467,4]
[426333074,1782319840000,-2873.41616995,0.00019278,2]
[426333072,1782319840000,-150.0,0.00019231,4]
[426333079,1782319840000,-150.0,0.00019333,4]
[426333083,1782319840000,-150.0,0.000194,4]